[Event "Open NK Rapid 2025 bord 26-50"]
[Site "Helmond, Netherlands"]
[Date "2025.05.03"]
[Round "6.1"]
[White "Bakels, Anton"]
[Black "Vasylchenko, Maksym"]
[Result "0-1"]
[TimeControl "15 min +5 sec increment"]
[WhiteFideId "1046187"]
[BlackFideId "34150617"]
[WhiteElo "2025"]
[BlackElo "1853"]

1. e4 {[%clk 00:14:59]} {[%emt 00:00:10]} c5 {[%clk 00:15:08]} {[%emt
00:00:03]} 2. Nf3 {[%clk 00:15:02]} {[%emt 00:00:03]} d6 {[%clk 00:15:10]}
{[%emt 00:00:03]} 3. d4 {[%clk 00:15:05]} {[%emt 00:00:02]} cxd4 {[%clk
00:15:12]} {[%emt 00:00:02]} 4. Nxd4 {[%clk 00:15:08]} {[%emt 00:00:02]} Nf6
{[%clk 00:15:14]} {[%emt 00:00:04]} 5. Nc3 {[%clk 00:15:10]} {[%emt 00:00:03]}
g6 {[%clk 00:15:15]} {[%emt 00:00:03]} 6. Be3 {[%clk 00:15:12]} {[%emt
00:00:03]} Bg7 {[%clk 00:15:17]} {[%emt 00:00:04]} 7. f3 {[%clk 00:15:14]}
{[%emt 00:00:03]} O-O {[%clk 00:15:17]} {[%emt 00:00:04]} 8. Qd2 {[%clk
00:15:17]} {[%emt 00:00:02]} Nc6 {[%clk 00:15:20]} {[%emt 00:00:03]} 9. O-O-O
{[%clk 00:15:18]} {[%emt 00:00:03]} d5 {[%clk 00:15:23]} {[%emt 00:00:02]} 10.
exd5 {[%clk 00:13:37]} {[%emt 00:01:47]} Nxd5 {[%clk 00:15:18]} {[%emt
00:00:09]} 11. Nxc6 {[%clk 00:13:37]} {[%emt 00:00:06]} bxc6 {[%clk 00:15:19]}
{[%emt 00:00:03]} 12. Bd4 {[%clk 00:13:39]} {[%emt 00:00:03]} e5 {[%clk
00:15:02]} {[%emt 00:00:22]} 13. Bc5 {[%clk 00:13:42]} {[%emt 00:00:02]} Re8
{[%clk 00:14:08]} {[%emt 00:00:59]} 14. Bc4 {[%clk 00:13:36]} {[%emt 00:00:11]}
Qa5 {[%clk 00:13:04]} {[%emt 00:01:10]} 15. Nxd5 {[%clk 00:11:42]} {[%emt
00:01:58]} Qxc5 {[%clk 00:12:43]} {[%emt 00:00:26]} 16. Nc7 {[%clk 00:11:40]}
{[%emt 00:00:07]} Qxc4 {[%clk 00:12:33]} {[%emt 00:00:15]} 17. Nxe8 {[%clk
00:11:41]} {[%emt 00:00:03]} Qxa2 {[%clk 00:12:34]} {[%emt 00:00:05]} 18. Qd8
{[%clk 00:11:44]} {[%emt 00:00:03]} Bh6+ {[%clk 00:12:30]} {[%emt 00:00:08]}
0-1

[Event "Open NK Rapid 2025 bord 26-50"]
[Site "Helmond, Netherlands"]
[Date "2025.05.03"]
[Round "6.3"]
[White "Kazarjan, Gachatur"]
[Black "Shakya, Amin"]
[Result "1-0"]
[TimeControl "15 min +5 sec increment"]
[WhiteFideId "1068750"]
[BlackFideId "12311677"]
[WhiteElo "2155"]
[BlackElo "1826"]

1. e4 {[%clk 00:15:09]} c6 {[%clk 00:15:10]} {[%emt 00:00:01]} 2. d4 {[%clk
00:15:13]} d5 {[%clk 00:15:14]} {[%emt 00:00:01]} 3. Nd2 {[%clk 00:15:17]} dxe4
{[%clk 00:15:10]} {[%emt 00:00:08]} 4. Nxe4 {[%clk 00:15:21]} {[%emt 00:00:01]}
Nf6 {[%clk 00:15:14]} 5. Nxf6+ {[%clk 00:15:24]} {[%emt 00:00:01]} exf6 {[%clk
00:15:18]} {[%emt 00:00:02]} 6. c3 {[%clk 00:15:29]} Bd6 {[%clk 00:14:57]}
{[%emt 00:00:26]} 7. Bd3 {[%clk 00:15:32]} {[%emt 00:00:01]} Nd7 {[%clk
00:14:38]} {[%emt 00:00:24]} 8. Qc2 {[%clk 00:15:35]} {[%emt 00:00:02]} Nf8
{[%clk 00:14:00]} {[%emt 00:00:43]} 9. Ne2 {[%clk 00:15:33]} {[%emt 00:00:07]}
Be6 {[%clk 00:14:01]} {[%emt 00:00:04]} 10. Be3 {[%clk 00:15:34]} {[%emt
00:00:04]} Ng6 {[%clk 00:13:52]} {[%emt 00:00:15]} 11. h4 {[%clk 00:15:28]}
{[%emt 00:00:11]} Qc7 {[%clk 00:13:46]} {[%emt 00:00:11]} 12. g3 {[%clk
00:15:28]} {[%emt 00:00:04]} Bd5 {[%clk 00:13:25]} {[%emt 00:00:26]} 13. Rg1
{[%clk 00:15:16]} {[%emt 00:00:17]} O-O-O {[%clk 00:13:18]} {[%emt 00:00:12]}
14. c4 {[%clk 00:15:12]} {[%emt 00:00:10]} Bf3 {[%clk 00:13:11]} {[%emt
00:00:12]} 15. O-O-O {[%clk 00:15:12]} {[%emt 00:00:04]} Bxe2 {[%clk 00:13:07]}
{[%emt 00:00:09]} 16. Qxe2 {[%clk 00:15:11]} {[%emt 00:00:06]} Qa5 {[%clk
00:12:37]} {[%emt 00:00:35]} 17. Kb1 {[%clk 00:15:10]} {[%emt 00:00:06]} Rhe8
{[%clk 00:12:32]} {[%emt 00:00:11]} 18. Qf3 {[%clk 00:15:05]} {[%emt 00:00:09]}
Nf8 {[%clk 00:12:09]} {[%emt 00:00:28]} 19. d5 {[%clk 00:14:42]} {[%emt
00:00:29]} cxd5 {[%clk 00:11:53]} {[%emt 00:00:21]} 20. Bf5+ {[%clk 00:14:35]}
{[%emt 00:00:12]} Kb8 {[%clk 00:11:49]} {[%emt 00:00:08]} 21. Rxd5 {[%clk
00:14:36]} {[%emt 00:00:04]} Qa6 {[%clk 00:11:40]} {[%emt 00:00:14]} 22. Rgd1
{[%clk 00:14:40]} {[%emt 00:00:01]} Bc7 {[%clk 00:11:23]} {[%emt 00:00:23]} 23.
Bf4 {[%clk 00:13:46]} {[%emt 00:00:57]} Rxd5 {[%clk 00:10:58]} {[%emt
00:00:31]} 24. Qxd5 {[%clk 00:13:05]} Ne6 {[%clk 00:06:12]} {[%emt 00:05:38]}
25. Bxc7+ {[%clk 00:12:52]} {[%emt 00:00:18]} Nxc7 {[%clk 00:06:15]} {[%emt
00:00:02]} 26. Qd8+ {[%clk 00:12:56]} {[%emt 00:00:01]} 1-0

[Event "Open NK Rapid 2025 bord 26-50"]
[Site "Helmond, Netherlands"]
[Date "2025.05.03"]
[Round "6.4"]
[White "Teianu, Sabin"]
[Black "Elferink, Leon"]
[Result "1/2-1/2"]
[TimeControl "15 min +5 sec increment"]
[WhiteFideId "1095846"]
[BlackFideId "1086545"]
[WhiteElo "2089"]
[BlackElo "1822"]

1. d4 {[%clk 00:15:09]} d5 {[%emt 00:00:03]} 2. c4 {[%clk 00:15:13]} e6 {[%clk
00:15:12]} {[%emt 00:00:01]} 3. Nc3 {[%clk 00:15:17]} {[%emt 00:00:02]} Nf6
{[%clk 00:15:16]} 4. Nf3 {[%clk 00:15:20]} {[%emt 00:00:02]} c6 {[%clk
00:15:18]} {[%emt 00:00:04]} 5. e3 {[%clk 00:15:24]} {[%emt 00:00:01]} Nbd7
{[%clk 00:15:21]} {[%emt 00:00:02]} 6. Be2 {[%clk 00:15:27]} Be7 {[%clk
00:15:13]} {[%emt 00:00:14]} 7. O-O {[%clk 00:15:30]} {[%emt 00:00:03]} O-O
{[%clk 00:15:15]} {[%emt 00:00:03]} 8. b3 {[%clk 00:15:34]} {[%emt 00:00:01]}
b6 {[%clk 00:15:09]} {[%emt 00:00:11]} 9. Bb2 {[%clk 00:15:37]} {[%emt
00:00:01]} Bb7 {[%clk 00:15:13]} {[%emt 00:00:02]} 10. Rc1 {[%clk 00:15:40]}
{[%emt 00:00:01]} Re8 {[%clk 00:14:59]} {[%emt 00:00:20]} 11. Bd3 {[%clk
00:15:33]} {[%emt 00:00:12]} Nf8 {[%clk 00:14:27]} {[%emt 00:00:37]} 12. e4
{[%clk 00:15:12]} {[%emt 00:00:26]} dxe4 {[%clk 00:14:18]} {[%emt 00:00:14]} 13.
Nxe4 {[%clk 00:15:14]} {[%emt 00:00:02]} c5 {[%clk 00:14:07]} {[%emt 00:00:17]}
14. Re1 {[%clk 00:12:57]} {[%emt 00:02:21]} Nxe4 {[%clk 00:13:40]} {[%emt
00:00:32]} 15. Bxe4 {[%clk 00:12:59]} {[%emt 00:00:03]} Bxe4 {[%clk 00:13:43]}
{[%emt 00:00:03]} 16. Rxe4 {[%clk 00:13:01]} {[%emt 00:00:02]} Bf6 {[%clk
00:13:36]} {[%emt 00:00:12]} 17. Qc2 {[%clk 00:12:31]} {[%emt 00:00:36]} cxd4
{[%clk 00:13:01]} {[%emt 00:00:40]} 18. Bxd4 {[%clk 00:11:42]} {[%emt
00:00:54]} Bxd4 {[%clk 00:11:40]} {[%emt 00:01:25]} 19. Nxd4 {[%clk 00:11:01]}
{[%emt 00:00:46]} Qf6 {[%clk 00:11:10]} {[%emt 00:00:35]} 20. Nb5 {[%clk
00:10:56]} {[%emt 00:00:10]} Red8 {[%clk 00:10:53]} {[%emt 00:00:22]} 21. Rd1
{[%clk 00:09:51]} {[%emt 00:01:11]} Rxd1+ {[%clk 00:10:30]} {[%emt 00:00:27]}
22. Qxd1 {[%clk 00:09:53]} {[%emt 00:00:03]} Rd8 {[%clk 00:10:28]} {[%emt
00:00:07]} 23. Rd4 {[%clk 00:05:35]} {[%emt 00:04:24]} Rxd4 {[%clk 00:10:12]}
{[%emt 00:00:21]} 24. Qxd4 {[%clk 00:05:36]} {[%emt 00:00:03]} Qf5 {[%clk
00:09:43]} {[%emt 00:00:33]} 25. h3 {[%clk 00:03:43]} {[%emt 00:02:00]} Qb1+
{[%clk 00:09:32]} {[%emt 00:00:15]} 26. Kh2 {[%clk 00:03:47]} Qxa2 {[%clk
00:09:28]} {[%emt 00:00:09]} 27. b4 {[%clk 00:03:50]} {[%emt 00:00:02]} e5
{[%clk 00:09:11]} {[%emt 00:00:22]} 28. Qd5 {[%clk 00:00:24]} {[%emt 00:03:32]}
Qxf2 {[%clk 00:08:45]} {[%emt 00:00:30]} 29. Qxe5 {[%clk 00:00:09]} {[%emt
00:00:21]} h6 {[%clk 00:07:12]} {[%emt 00:01:38]} 30. Nxa7 {[%clk 00:00:12]}
Ne6 {[%clk 00:07:03]} {[%emt 00:00:14]} 31. Qg3 {[%clk 00:00:07]} {[%emt
00:00:11]} Qd4 {[%clk 00:06:53]} {[%emt 00:00:14]} 32. Qb3 {[%clk 00:00:10]}
{[%emt 00:00:02]} Nf4 {[%clk 00:06:06]} {[%emt 00:00:53]} 33. Nb5 {[%clk
00:00:12]} {[%emt 00:00:03]} Qf2 {[%clk 00:05:37]} {[%emt 00:00:33]} 34. Qf3
{[%clk 00:00:14]} {[%emt 00:00:03]} Qxf3 {[%clk 00:05:33]} {[%emt 00:00:09]} 35.
gxf3 {[%clk 00:00:17]} {[%emt 00:00:02]} Nd3 {[%clk 00:05:37]} {[%emt
00:00:01]} 36. Nc7 {[%clk 00:00:06]} {[%emt 00:00:16]} Ne5 {[%clk 00:05:27]}
{[%emt 00:00:15]} 37. c5 {[%clk 00:00:08]} {[%emt 00:00:04]} bxc5 {[%clk
00:05:16]} {[%emt 00:00:16]} 38. bxc5 {[%clk 00:00:12]} {[%emt 00:00:01]} Nxf3+
{[%clk 00:05:17]} {[%emt 00:00:04]} 39. Kg3 {[%clk 00:00:16]} Nd4 {[%clk
00:05:19]} {[%emt 00:00:02]} 40. Nd5 {[%clk 00:00:08]} {[%emt 00:00:13]} Nc6
{[%clk 00:05:22]} {[%emt 00:00:02]} 41. Kf4 {[%clk 00:00:11]} {[%emt 00:00:03]}
g6 {[%clk 00:04:59]} {[%emt 00:00:27]} 42. Ke4 {[%clk 00:00:12]} {[%emt
00:00:04]} f5+ {[%clk 00:05:01]} {[%emt 00:00:04]} 43. Kf4 {[%clk 00:00:12]}
{[%emt 00:00:04]} Kf7 {[%clk 00:05:02]} {[%emt 00:00:04]} 44. Nc7 {[%clk
00:00:08]} {[%emt 00:00:09]} Nd8 {[%clk 00:04:52]} {[%emt 00:00:16]} 45. Ke5
{[%clk 00:00:09]} {[%emt 00:00:04]} Ke7 {[%clk 00:04:10]} {[%emt 00:00:47]} 46.
h4 {[%clk 00:00:09]} {[%emt 00:00:05]} Kd7 {[%clk 00:04:07]} {[%emt 00:00:08]}
47. Nd5 {[%clk 00:00:11]} {[%emt 00:00:03]} Nc6+ {[%clk 00:03:14]} {[%emt
00:00:57]} 48. Kf6 {[%clk 00:00:14]} {[%emt 00:00:02]} g5 {[%clk 00:02:24]}
{[%emt 00:00:55]} 49. hxg5 {[%clk 00:00:17]} {[%emt 00:00:02]} hxg5 {[%clk
00:02:26]} {[%emt 00:00:03]} 50. Kxf5 {[%clk 00:00:18]} {[%emt 00:00:05]}
1/2-1/2

[Event "Open NK Rapid 2025 bord 26-50"]
[Site "Helmond, Netherlands"]
[Date "2025.05.03"]
[Round "6.5"]
[White "Ruben, Berend"]
[Black "Werkhoven, Maarten"]
[Result "0-1"]
[TimeControl "15 min +5 sec increment"]
[WhiteFideId "1084682"]
[BlackFideId "1014188"]
[WhiteElo "2074"]
[BlackElo "1822"]

1. e4 {[%clk 00:15:08]} {[%emt 00:00:02]} e5 {[%clk 00:15:09]} {[%emt
00:00:02]} 2. Nf3 {[%clk 00:15:11]} {[%emt 00:00:01]} Nc6 {[%clk 00:15:12]}
{[%emt 00:00:02]} 3. d4 {[%clk 00:15:15]} {[%emt 00:00:01]} d6 {[%clk
00:15:10]} {[%emt 00:00:07]} 4. dxe5 {[%clk 00:15:16]} {[%emt 00:00:05]} Nxe5
{[%clk 00:15:13]} {[%emt 00:00:02]} 5. Bf4 {[%clk 00:14:36]} {[%emt 00:00:44]}
Nxf3+ {[%clk 00:15:15]} {[%emt 00:00:03]} 6. Qxf3 {[%clk 00:14:35]} {[%emt
00:00:07]} Be7 {[%clk 00:15:16]} {[%emt 00:00:04]} 7. Bc4 {[%clk 00:14:07]}
{[%emt 00:00:33]} Nf6 {[%clk 00:15:12]} {[%emt 00:00:08]} 8. h3 {[%clk
00:13:58]} {[%emt 00:00:14]} O-O {[%clk 00:15:15]} {[%emt 00:00:03]} 9. Nc3
{[%clk 00:13:47]} {[%emt 00:00:15]} c6 {[%clk 00:15:17]} {[%emt 00:00:04]} 10.
O-O-O {[%clk 00:13:23]} {[%emt 00:00:28]} Ne8 {[%clk 00:12:38]} {[%emt
00:02:43]} 11. Rd3 {[%clk 00:11:42]} {[%emt 00:01:47]} Be6 {[%clk 00:11:58]}
{[%emt 00:00:46]} 12. Bxe6 {[%clk 00:10:11]} {[%emt 00:01:35]} fxe6 {[%clk
00:12:01]} {[%emt 00:00:02]} 13. Qg4 {[%clk 00:09:09]} {[%emt 00:01:08]} Rxf4
{[%clk 00:12:04]} {[%emt 00:00:02]} 14. Qxe6+ {[%clk 00:09:04]} {[%emt
00:00:09]} Kh8 {[%clk 00:12:08]} {[%emt 00:00:01]} 15. f3 {[%clk 00:07:45]}
{[%emt 00:01:24]} Rf6 {[%clk 00:11:11]} {[%emt 00:01:01]} 16. Qc4 {[%clk
00:07:38]} {[%emt 00:00:13]} Rf8 {[%clk 00:09:24]} {[%emt 00:01:52]} 17. Re1
{[%clk 00:07:26]} {[%emt 00:00:17]} Qb6 {[%clk 00:08:57]} {[%emt 00:00:32]} 18.
Qe6 {[%clk 00:06:03]} {[%emt 00:01:28]} Bf6 {[%clk 00:08:27]} {[%emt 00:00:35]}
19. g4 {[%clk 00:04:41]} {[%emt 00:01:28]} Bxc3 {[%clk 00:08:29]} {[%emt
00:00:02]} 20. Rxc3 {[%clk 00:04:45]} {[%emt 00:00:02]} Nc7 {[%clk 00:07:35]}
{[%emt 00:00:59]} 21. Qd7 {[%clk 00:03:57]} {[%emt 00:00:53]} Rad8 {[%clk
00:07:09]} {[%emt 00:00:30]} 22. Qe7 {[%clk 00:03:59]} {[%emt 00:00:03]} Nb5
{[%clk 00:06:14]} {[%emt 00:01:00]} 23. Rce3 {[%clk 00:03:30]} {[%emt
00:00:33]} Qc7 {[%clk 00:06:02]} {[%emt 00:00:17]} 24. Qh4 {[%clk 00:03:20]}
{[%emt 00:00:15]} Qf7 {[%clk 00:05:59]} {[%emt 00:00:08]} 25. Kb1 {[%clk
00:03:15]} {[%emt 00:00:11]} Nd4 {[%clk 00:05:49]} {[%emt 00:00:15]} 26. Rf1
{[%clk 00:02:33]} {[%emt 00:00:48]} Ne6 {[%clk 00:05:35]} {[%emt 00:00:19]} 27.
f4 {[%clk 00:02:04]} {[%emt 00:00:33]} Rde8 {[%clk 00:04:26]} {[%emt 00:01:13]}
28. g5 {[%clk 00:01:55]} {[%emt 00:00:15]} g6 {[%clk 00:04:12]} {[%emt
00:00:19]} 29. f5 {[%clk 00:01:42]} {[%emt 00:00:18]} Ng7 {[%clk 00:03:51]}
{[%emt 00:00:26]} 30. Ref3 {[%clk 00:01:19]} {[%emt 00:00:28]} Rg8 {[%clk
00:01:46]} {[%emt 00:02:10]} 31. Qf4 {[%clk 00:00:31]} {[%emt 00:00:54]} Re5
{[%clk 00:01:36]} {[%emt 00:00:14]} 32. fxg6 {[%clk 00:00:15]} {[%emt
00:00:21]} Qxf4 {[%clk 00:01:28]} {[%emt 00:00:14]} 33. Rxf4 {[%clk 00:00:18]}
hxg6 {[%clk 00:01:30]} {[%emt 00:00:03]} 34. h4 {[%clk 00:00:12]} {[%emt
00:00:12]} Nh5 {[%clk 00:01:31]} {[%emt 00:00:03]} 35. Rf7 {[%clk 00:00:12]}
{[%emt 00:00:05]} Rg7 {[%clk 00:01:04]} {[%emt 00:00:32]} 36. Rf8+ {[%clk
00:00:16]} {[%emt 00:00:01]} Kh7 {[%emt 00:00:11]} 37. Ra8 {[%clk 00:00:20]} a6
{[%clk 00:01:03]} {[%emt 00:00:01]} 38. Rff8 {[%clk 00:00:22]} {[%emt
00:00:04]} Rge7 {[%clk 00:00:36]} {[%emt 00:00:31]} 39. Rh8+ {[%clk 00:00:25]}
{[%emt 00:00:02]} Kg7 {[%clk 00:00:41]} {[%emt 00:00:01]} 40. Rhg8+ {[%clk
00:00:27]} {[%emt 00:00:03]} Kf7 {[%clk 00:00:44]} {[%emt 00:00:01]} 41. Raf8+
{[%clk 00:00:31]} {[%emt 00:00:01]} Ke6 {[%clk 00:00:48]} {[%emt 00:00:01]} 42.
Rxg6+ {[%clk 00:00:34]} {[%emt 00:00:02]} Kd7 {[%clk 00:00:51]} {[%emt
00:00:02]} 43. Rh6 {[%clk 00:00:28]} {[%emt 00:00:11]} Rxe4 {[%clk 00:00:55]}
{[%emt 00:00:02]} 44. a3 {[%clk 00:00:30]} {[%emt 00:00:03]} Rxh4 {[%clk
00:00:56]} {[%emt 00:00:03]} 45. Rfh8 {[%clk 00:00:29]} {[%emt 00:00:06]} Rh1+
{[%clk 00:00:43]} {[%emt 00:00:18]} 46. Ka2 {[%clk 00:00:33]} {[%emt 00:00:02]}
Ng3 {[%clk 00:00:23]} {[%emt 00:00:22]} 47. Rxh1 {[%clk 00:00:36]} {[%emt
00:00:04]} Nxh1 {[%clk 00:00:27]} {[%emt 00:00:01]} 48. Rxh1 {[%clk 00:00:40]}
{[%emt 00:00:01]} Rg7 {[%clk 00:00:31]} {[%emt 00:00:02]} 49. g6 {[%clk
00:00:25]} {[%emt 00:00:19]} Ke6 {[%clk 00:00:35]} {[%emt 00:00:01]} 50. Rh7
{[%clk 00:00:11]} {[%emt 00:00:19]} Kf6 {[%clk 00:00:36]} {[%emt 00:00:04]} 51.
Rh6 {[%clk 00:00:14]} {[%emt 00:00:02]} Rxg6 {[%clk 00:00:39]} {[%emt
00:00:03]} 52. Rh7 {[%clk 00:00:17]} Rg7 {[%clk 00:00:43]} {[%emt 00:00:01]} 53.
Rh6+ {[%clk 00:00:21]} Ke5 {[%clk 00:00:47]} {[%emt 00:00:01]} 54. Kb3 {[%clk
00:00:23]} {[%emt 00:00:03]} b5 {[%clk 00:00:44]} {[%emt 00:00:08]} 55. Rh5+
{[%clk 00:00:26]} {[%emt 00:00:02]} Ke6 {[%clk 00:00:46]} {[%emt 00:00:03]} 56.
Rh6+ {[%clk 00:00:29]} {[%emt 00:00:02]} Ke5 {[%clk 00:00:42]} {[%emt
00:00:08]} 57. Rh5+ {[%clk 00:00:33]} {[%emt 00:00:02]} Kf4 {[%clk 00:00:37]}
{[%emt 00:00:10]} 58. Rh4+ {[%clk 00:00:35]} {[%emt 00:00:04]} Ke5 {[%clk
00:00:35]} {[%emt 00:00:06]} 59. Rh5+ {[%clk 00:00:38]} {[%emt 00:00:02]} Ke6
{[%clk 00:00:37]} {[%emt 00:00:03]} 60. Rh6+ {[%clk 00:00:42]} {[%emt
00:00:02]} Kd7 {[%clk 00:00:42]} 61. Rh8 {[%clk 00:00:44]} {[%emt 00:00:03]}
Rg3+ {[%clk 00:00:39]} {[%emt 00:00:07]} 62. c3 {[%clk 00:00:47]} {[%emt
00:00:02]} Kc7 {[%clk 00:00:36]} {[%emt 00:00:07]} 63. Rh6 {[%clk 00:00:47]}
{[%emt 00:00:05]} Rg5 {[%clk 00:00:38]} {[%emt 00:00:04]} 64. a4 {[%clk
00:00:44]} {[%emt 00:00:08]} c5 {[%clk 00:00:36]} {[%emt 00:00:07]} 65. axb5
{[%clk 00:00:43]} {[%emt 00:00:07]} axb5 {[%clk 00:00:39]} {[%emt 00:00:01]} 66.
Rh7+ {[%clk 00:00:46]} {[%emt 00:00:02]} Kc6 {[%clk 00:00:44]} 67. Rh8 {[%clk
00:00:50]} Rg7 {[%clk 00:00:45]} {[%emt 00:00:04]} 68. Rh5 {[%clk 00:00:53]}
{[%emt 00:00:03]} Rb7 {[%clk 00:00:48]} {[%emt 00:00:01]} 69. Kc2 {[%clk
00:00:56]} {[%emt 00:00:02]} c4 {[%clk 00:00:49]} {[%emt 00:00:04]} 70. Rh8
{[%clk 00:00:56]} {[%emt 00:00:05]} Kc5 {[%clk 00:00:53]} {[%emt 00:00:02]} 71.
Rc8+ {[%clk 00:00:57]} {[%emt 00:00:03]} Kd5 {[%clk 00:00:56]} {[%emt
00:00:02]} 72. Re8 {[%clk 00:01:01]} b4 {[%clk 00:01:00]} {[%emt 00:00:02]} 73.
Rh8 {[%clk 00:00:35]} {[%emt 00:00:29]} b3+ {[%clk 00:01:02]} {[%emt 00:00:04]}
74. Kd2 {[%clk 00:00:31]} {[%emt 00:00:10]} Re7 {[%clk 00:01:04]} {[%emt
00:00:02]} 75. Rh3 {[%clk 00:00:20]} {[%emt 00:00:15]} Re5 {[%clk 00:01:04]}
{[%emt 00:00:06]} 76. Rh4 {[%clk 00:00:22]} {[%emt 00:00:04]} Rg5 {[%clk
00:01:03]} {[%emt 00:00:06]} 77. Rd4+ {[%clk 00:00:17]} {[%emt 00:00:10]} Kc5
{[%clk 00:01:06]} {[%emt 00:00:02]} 78. Re4 {[%clk 00:00:07]} {[%emt 00:00:15]}
Rg2+ {[%clk 00:01:09]} {[%emt 00:00:01]} 0-1